fUST/lending_fUST_20250611
["ID","MTS","AMOUNT","RATE_DAILY","PERIOD"]
[365305449,1749589841963,-460.0,0.00022465,4]
[365305450,1749589841972,-255.54,0.00022465,4]
[365305451,1749589841981,-460.0,0.00022465,4]
[365305452,1749589841990,-400.0,0.00022465,4]
[365305453,1749589841999,-460.0,0.00022465,4]
[365305454,1749589842008,-460.0,0.00022465,4]
[365305455,1749589842017,-473.01,0.00022465,4]
[365305456,1749589842026,-460.0,0.00022465,4]
[365305457,1749589842035,-460.0,0.00022465,4]
[365305458,1749589842044,-460.0,0.00022465,4]
[365305459,1749589842054,-2762.80058687,0.00022521,7]
[365305460,1749589842063,-500.0,0.00022581,2]
[365305461,1749589842072,-1000.0,0.00022589,2]
[365305462,1749589842082,-567.71,0.000226,7]
[365305463,1749589842091,-267.35194857,0.000226,2]
[365305464,1749589842103,-2762.80058687,0.00022624,7]
[365305465,1749589842112,-1001.61992717,0.00022686,2]
[365305466,1749589842122,-163.69092393,0.00022727,2]
[365305467,1749589842131,-2762.80058687,0.00022728,7]
[365305468,1749589842140,-538.62,0.00022729,3]
[365305469,1749589842149,-1077.26,0.00022729,3]
[365305470,1749589842158,-538.64,0.00022729,3]
[365305471,1749589842167,-1077.9,0.00022729,3]
[365305472,1749589842176,-538.94,0.00022729,3]
[365305473,1749589842187,-160.0,0.00022737,2]
[365305474,1749589842196,-460.0,0.00022739,4]
[365305475,1749589842205,-490.0,0.00022739,4]
[365305476,1749589842214,-460.0,0.00022739,4]
[365305477,1749589842224,-460.0,0.00022739,4]
[365305478,1749589842233,-460.0,0.00022739,4]
[365305479,1749589842243,-460.0,0.00022739,4]
[365305480,1749589842252,-460.0,0.00022739,4]
[365305481,1749589842262,-400.0,0.00022739,4]
[365305482,1749589842272,-1389.58,0.00022739,4]
[365305483,1749589842282,-460.0,0.00022739,4]
[365305484,1749589842292,-460.0,0.00022739,4]
[365305485,1749589842301,-460.0,0.00022739,4]
[365305486,1749589842311,-460.0,0.00022739,4]
[365305488,1749589842320,-240.0,0.00022739,4]
[365305489,1749589842329,-380.0,0.00022739,4]
[365305490,1749589842338,-587.19774906,0.00022739,4]
[365305491,1749589842348,-1521.47,0.00022739,4]
[365305492,1749589842357,-460.0,0.00022739,4]
[365305493,1749589842366,-360.0,0.00022739,4]
[365305494,1749589842376,-460.0,0.00022739,4]
[365305495,1749589842385,-460.0,0.00022739,4]
[365305496,1749589842395,-460.0,0.00022739,4]
[365305498,1749589842404,-460.0,0.00022739,4]
[365305500,1749589842413,-460.0,0.00022739,4]
[365305502,1749589842422,-390.0,0.00022739,4]
[365305503,1749589842431,-460.0,0.00022739,4]
[365305504,1749589842440,-460.0,0.00022739,4]
[365305505,1749589842449,-1212.62,0.00022739,4]
[365305506,1749589842459,-460.0,0.00022739,2]
[365305507,1749589842469,-460.0,0.00022739,4]
[365305509,1749589842477,-460.0,0.00022739,4]
[365305511,1749589842486,-1247.94,0.00022739,4]
[365305513,1749589842496,-1137.32,0.00022739,4]
[365305514,1749589842505,-1202.04,0.00022739,4]
[365305515,1749589842515,-460.0,0.00022739,4]
[365305516,1749589842524,-460.0,0.00022739,4]
[365305517,1749589842534,-460.0,0.00022739,4]
[365305518,1749589842543,-460.0,0.00022739,4]
[365305519,1749589842552,-1523.18,0.00022739,4]
[365305520,1749589842561,-933.91,0.00022739,4]
[365305521,1749589842570,-460.0,0.00022739,4]
[365305522,1749589842580,-1065.64,0.00022739,4]
[365305523,1749589842591,-461.75,0.00022739,4]
[365305524,1749589842601,-460.0,0.00022739,4]
[365305525,1749589842611,-460.0,0.00022739,4]
[365305526,1749589842620,-460.0,0.00022739,4]
[365305527,1749589842628,-460.0,0.00022739,4]
[365305528,1749589842638,-380.0,0.00022739,4]
[365305529,1749589842648,-460.0,0.00022739,4]
[365305530,1749589842657,-473.01,0.00022739,4]
[365305531,1749589842666,-460.0,0.00022739,4]
[365305532,1749589842675,-460.0,0.00022739,4]
[365305533,1749589842684,-460.0,0.00022739,4]
[365305534,1749589842694,-213.1263252,0.00022746,2]
[365305535,1749589842704,-160.0,0.00022746,2]
[365305536,1749589842714,-229.6792923,0.00022746,2]
[365305537,1749589842723,-160.0,0.00022746,2]
[365305538,1749589842732,-842.5625,0.00022746,2]
[365305539,1749589842742,-424.12530924,0.00022746,2]
[365305540,1749589842753,-160.0,0.0002275,2]
[365305541,1749589842839,-160.0,0.0002275,2]
[365305542,1749589842858,-2762.80058687,0.00022831,8]
[365305543,1749589842868,-175.06123859,0.00022897,2]
[365305544,1749589842878,-2762.80058687,0.00022934,8]
[365305545,1749589842888,-360.0,0.00023013,4]
[365305546,1749589842897,-460.0,0.00023013,4]
[365305547,1749589842906,-302.58128461,0.00023013,4]
[365305548,1749589842915,-460.0,0.00023013,4]
[365305549,1749589842925,-370.0,0.00023013,4]
[365305550,1749589842934,-460.0,0.00023013,4]
[365305551,1749589842943,-1389.58,0.00023013,4]
[365305552,1749589842952,-460.0,0.00023013,4]
[365305553,1749589842962,-460.0,0.00023013,4]
[365305554,1749589842972,-460.0,0.00023013,4]
[365305555,1749589842982,-460.0,0.00023013,4]
[365305556,1749589842991,-1521.47,0.00023013,4]
[365305557,1749589843001,-460.0,0.00023013,4]
[365305558,1749589843012,-460.0,0.00023013,4]
[365305559,1749589843021,-460.0,0.00023013,4]
[365305560,1749589843031,-460.0,0.00023013,4]
[365305561,1749589843040,-460.0,0.00023013,4]
[365305562,1749589843050,-460.0,0.00023013,4]
[365305563,1749589843059,-370.0,0.00023013,4]
[365305564,1749589843075,-300.93,0.00023013,4]
[365305565,1749589843086,-1212.62,0.00023013,4]
[365305566,1749589843107,-460.0,0.00023013,2]
[365305567,1749589843117,-360.0,0.00023013,4]
[365305568,1749589843127,-460.0,0.00023013,4]
[365305569,1749589843137,-1247.94,0.00023013,4]
[365305570,1749589843147,-1137.32,0.00023013,4]
[365305572,1749589843156,-1202.04,0.00023013,4]
[365305574,1749589843168,-460.0,0.00023013,4]
[365305575,1749589843177,-460.0,0.00023013,4]
[365305576,1749589843187,-460.0,0.00023013,4]
[365305577,1749589843197,-460.0,0.00023013,4]
[365305578,1749589843206,-1523.18,0.00023013,4]
[365305579,1749589843216,-933.91,0.00023013,4]
[365305580,1749589843226,-460.0,0.00023013,4]
[365305581,1749589843235,-461.75,0.00023013,4]
[365305582,1749589843245,-1065.64,0.00023013,4]
[365305583,1749589843254,-460.0,0.00023013,4]
[365305584,1749589843264,-460.0,0.00023013,4]
[365305585,1749589843273,-460.0,0.00023013,4]
[365305586,1749589843282,-460.0,0.00023013,4]
[365305587,1749589843292,-360.0,0.00023013,4]
[365305588,1749589843301,-473.01,0.00023013,4]
[365305589,1749589843311,-460.0,0.00023013,4]
[365305590,1749589843320,-460.0,0.00023013,4]
[365305591,1749589843329,-460.0,0.00023013,4]
[365305592,1749589843338,-2762.80058687,0.00023038,8]
[365305593,1749589843347,-4807.7,0.00023039,2]
[365305594,1749589843357,-321.99105007,0.000231,2]
[365305595,1749589843375,-3894.41640471,0.000231,2]
[365305596,1749589843387,-585.85432642,0.000231,2]
[365305597,1749589843398,-36725.4682188,0.000231,2]
[365305598,1749589843407,-1500.0,0.00023137,2]
[365305599,1749589843416,-2762.80058687,0.00023141,8]
[365305600,1749589843426,-613.4854085,0.00023173,2]
[365305601,1749589843435,-500.0,0.00023173,2]
[365305602,1749589843444,-3000.0,0.000232,2]
[365305603,1749589843454,-817.28,0.000232,7]
[365305604,1749589843463,-62216.1,0.000232,7]
[365305605,1749589843472,-3000.0,0.0002321,2]
[365305606,1749589843481,-3000.0,0.0002322,2]
[365305607,1749589843490,-3000.0,0.0002323,2]
[365305608,1749589843500,-3000.0,0.0002324,2]
[365305609,1749589843509,-2762.80058687,0.00023245,8]
[365305610,1749589843518,-3000.0,0.0002325,2]
[365305611,1749589843527,-500.0,0.00023253,2]
[365305612,1749589843536,-3000.0,0.0002326,2]
[365305613,1749589843545,-153.0,0.0002326,2]
[365305614,1749589843555,-3000.0,0.0002327,2]
[365305615,1749589843564,-3000.0,0.0002328,2]
[365305616,1749589843573,-460.0,0.00023287,4]
[365305617,1749589843582,-360.0,0.00023287,4]
[365305618,1749589843592,-460.0,0.00023287,4]
[365305619,1749589843602,-1389.58,0.00023287,4]
[365305620,1749589843612,-298.26,0.00023287,4]
[365305621,1749589843622,-360.0,0.00023287,4]
[365305622,1749589843631,-460.0,0.00023287,4]
[365305623,1749589843641,-460.0,0.00023287,4]
[365305624,1749589843650,-1521.47,0.00023287,4]
[365305625,1749589843659,-460.0,0.00023287,4]
[365305626,1749589843668,-460.0,0.00023287,4]
[365305627,1749589843677,-460.0,0.00023287,4]
[365305628,1749589843687,-460.0,0.00023287,4]
[365305629,1749589843696,-460.0,0.00023287,4]
[365305630,1749589843705,-380.0,0.00023287,4]
[365305631,1749589843714,-1212.62,0.00023287,4]
[365305632,1749589843723,-460.0,0.00023287,2]
[365305633,1749589843732,-460.0,0.00023287,4]
[365305634,1749589843741,-1247.94,0.00023287,4]
[365305635,1749589843752,-1137.32,0.00023287,4]
[365305636,1749589843763,-1202.04,0.00023287,4]
[365305637,1749589843772,-460.0,0.00023287,4]
[365305638,1749589843782,-460.0,0.00023287,4]
[365305639,1749589843793,-380.0,0.00023287,4]
[365305640,1749589843802,-460.0,0.00023287,4]
[365305641,1749589843811,-1523.18,0.00023287,4]
[365305642,1749589843820,-933.91,0.00023287,4]
[365305643,1749589843833,-460.0,0.00023287,4]
[365305644,1749589843843,-1065.64,0.00023287,4]
[365305645,1749589843852,-461.75,0.00023287,4]
[365305646,1749589843861,-360.0,0.00023287,4]
[365305647,1749589843871,-380.0,0.00023287,4]
[365305648,1749589843880,-380.0,0.00023287,4]
[365305649,1749589843889,-460.0,0.00023287,4]
[365305650,1749589843898,-473.01,0.00023287,4]
[365305651,1749589843907,-460.0,0.00023287,4]
[365305652,1749589843917,-460.0,0.00023287,4]
[365305653,1749589843926,-360.0,0.00023287,4]
[365305654,1749589843935,-3000.0,0.0002329,2]
[365305655,1749589843944,-3000.0,0.000233,2]
[365305656,1749589843953,-3000.0,0.0002331,2]
[365305657,1749589843962,-3000.0,0.0002332,2]
[365305658,1749589843972,-3000.0,0.0002333,2]
[365305659,1749589843981,-3000.0,0.0002334,2]
[365305660,1749589843990,-2762.80058687,0.00023348,9]
[365305661,1749589843999,-3000.0,0.0002335,2]
[365305662,1749589844009,-3000.0,0.0002336,2]
[365305663,1749589844019,-3000.0,0.0002337,2]
[365305664,1749589844029,-3000.0,0.0002338,2]
[365305665,1749589844038,-3000.0,0.0002339,2]
[365305666,1749589844047,-3000.0,0.000234,2]
[365305667,1749589844056,-5000.0,0.00023403,2]
[365305668,1749589844065,-207.4,0.00023403,2]
[365305669,1749589844074,-3000.0,0.0002341,2]
[365305670,1749589844083,-3000.0,0.0002342,2]
[365305671,1749589844092,-3000.0,0.0002343,2]
[365305672,1749589844101,-3000.0,0.0002344,2]
[365305673,1749589844111,-3000.0,0.0002345,2]
[365305674,1749589844120,-2762.80058687,0.00023452,9]
[365305675,1749589844129,-163.69092393,0.00023455,2]
[365305676,1749589844138,-3000.0,0.0002346,2]
[365305677,1749589844147,-3000.0,0.0002347,2]
[365305678,1749589844157,-3000.0,0.0002348,2]
[365305679,1749589844166,-3000.0,0.0002349,2]
[365305680,1749589844175,-3000.0,0.000235,2]
[365305681,1749589844184,-1020.0,0.000235,3]
[365305682,1749589844194,-1020.0,0.000235,3]
[365305683,1749589844203,-1020.0,0.000235,3]
[365305684,1749589844213,-1020.0,0.000235,3]
[365305685,1749589844222,-1020.0,0.000235,3]
[365305686,1749589844232,-1020.0,0.000235,3]
[365305687,1749589844241,-1020.0,0.000235,3]
[365305688,1749589844250,-1020.0,0.000235,3]
[365305689,1749589844259,-1020.0,0.000235,3]
[365305690,1749589844268,-1020.0,0.000235,3]
[365305691,1749589844278,-424.12530924,0.000235,3]
[365305692,1749589844288,-160.0,0.000235,3]
[365305693,1749589844297,-160.0,0.000235,3]
[365305694,1749589844306,-3000.0,0.0002351,2]
[365305695,1749589844316,-168.0,0.00023514,2]
[365305696,1749589844325,-3000.0,0.0002352,2]
[365305697,1749589844334,-3000.0,0.0002353,2]
[365305698,1749589844344,-3000.0,0.0002354,2]
[365305699,1749589844353,-3000.0,0.0002355,2]
[365305700,1749589844362,-2762.80058687,0.00023555,9]
[365305701,1749589844371,-3000.0,0.0002356,2]
[365305702,1749589844381,-497.2849,0.00023561,4]
[365305703,1749589844390,-360.0,0.00023561,4]
[365305704,1749589844399,-1389.58,0.00023561,4]
[365305705,1749589844409,-460.0,0.00023561,4]
[365305706,1749589844418,-460.0,0.00023561,4]
[365305707,1749589844427,-1521.47,0.00023561,4]
[365305708,1749589844436,-460.0,0.00023561,4]
[365305709,1749589844445,-504.4435329,0.00023561,4]
[365305710,1749589844454,-460.0,0.00023561,4]
[365305711,1749589844463,-572.16,0.00023561,4]
[365305712,1749589844473,-460.0,0.00023561,4]
[365305713,1749589844482,-1212.62,0.00023561,4]
[365305714,1749589844491,-460.0,0.00023561,2]
[365305715,1749589844500,-460.0,0.00023561,4]
[365305716,1749589844510,-1247.94,0.00023561,4]
[365305717,1749589844519,-1137.32,0.00023561,4]
[365305718,1749589844528,-1202.04,0.00023561,4]
[365305719,1749589844537,-460.0,0.00023561,4]
[365305720,1749589844546,-460.0,0.00023561,4]
[365305721,1749589844556,-460.0,0.00023561,4]
[365305722,1749589844566,-1523.18,0.00023561,4]
[365305723,1749589844575,-933.91,0.00023561,4]
[365305724,1749589844584,-460.0,0.00023561,4]
[365305725,1749589844594,-1065.64,0.00023561,4]
[365305726,1749589844603,-461.75,0.00023561,4]
[365305727,1749589844613,-460.0,0.00023561,4]
[365305728,1749589844622,-473.01,0.00023561,4]
[365305729,1749589844632,-460.0,0.00023561,4]
[365305730,1749589844642,-460.0,0.00023561,4]
[365305731,1749589844651,-3000.0,0.0002357,2]
[365305732,1749589844661,-3000.0,0.0002358,2]
[365305733,1749589844670,-3000.0,0.0002359,2]
[365305734,1749589844679,-226.56573404,0.00023597,75]
[365305735,1749589844765,-3000.0,0.000236,2]
[365305736,1749589844775,-3000.0,0.0002361,2]
[365305737,1749589844785,-3000.0,0.0002362,2]
[365305738,1749589844794,-3000.0,0.0002363,2]
[365305739,1749589844803,-4095.109001,0.0002364,2]
[365305740,1749589844812,-2762.80058687,0.00023659,9]
[365305741,1749589844821,-151.0,0.000237,10]
[365305742,1749589844831,-500.0,0.00023721,2]
[365305743,1749589844841,-2762.80058687,0.00023762,9]
[365305744,1749589844851,-567.71,0.000238,7]
[365305745,1749589844860,-1389.58,0.00023835,4]
[365305746,1749589844869,-460.0,0.00023835,4]
[365305747,1749589844879,-460.0,0.00023835,4]
[365305748,1749589844888,-1521.47,0.00023835,4]
[365305749,1749589844898,-460.0,0.00023835,4]
[365305750,1749589844908,-460.0,0.00023835,4]
[365305751,1749589844917,-460.0,0.00023835,4]
[365305752,1749589844927,-1212.62,0.00023835,4]
[365305753,1749589844936,-460.0,0.00023835,2]
[365305754,1749589844946,-460.0,0.00023835,4]
[365305755,1749589844955,-1247.94,0.00023835,4]
[365305756,1749589844964,-1137.32,0.00023835,4]
[365305757,1749589844974,-1202.04,0.00023835,4]
[365305758,1749589844983,-460.0,0.00023835,4]
[365305759,1749589844992,-360.0,0.00023835,4]
[365305760,1749589845001,-460.0,0.00023835,4]
[365305761,1749589845011,-1523.18,0.00023835,4]
[365305762,1749589845021,-933.91,0.00023835,4]
[365305763,1749589845030,-360.0,0.00023835,4]
[365305764,1749589845040,-461.75,0.00023835,4]
[365305765,1749589845049,-1065.64,0.00023835,4]
[365305766,1749589845060,-460.0,0.00023835,4]
[365305767,1749589845074,-473.01,0.00023835,4]
[365305768,1749589845084,-460.0,0.00023835,4]
[365305769,1749589845094,-460.0,0.00023835,4]
[365305770,1749589845105,-175.06123859,0.00023848,2]
[365305771,1749589845115,-2762.80058687,0.00023866,10]
[365305772,1749589845126,-5000.0,0.00023951,2]
[365305773,1749589845135,-168.0,0.00023951,2]
[365305774,1749589845145,-5769.24,0.0002396,2]
[365305775,1749589845155,-2762.80058687,0.00023969,10]
[365305776,1749589845166,-229.6792923,0.00024,7]
[365305777,1749589845175,-2762.80058687,0.00024072,10]
[365305778,1749589845184,-153.0,0.00024082,2]
[365305779,1749589845194,-153.0,0.00024082,2]
[365305780,1749589845203,-153.0,0.00024082,2]
[365305781,1749589845212,-151.0,0.00024089,7]
[365305782,1749589845222,-41527.73,0.000241,2]
[365305783,1749589845232,-151.0,0.000241,6]
[365305784,1749589845244,-1389.58,0.00024109,4]
[365305785,1749589845266,-460.0,0.00024109,4]
[365305786,1749589845278,-460.0,0.00024109,4]
[365305787,1749589845287,-1521.47,0.00024109,4]
[365305788,1749589845297,-460.0,0.00024109,4]
[365305789,1749589845306,-460.0,0.00024109,4]
[365305790,1749589845316,-460.0,0.00024109,4]
[365305791,1749589845325,-1212.62,0.00024109,4]
[365305792,1749589845335,-460.0,0.00024109,2]
[365305793,1749589845344,-281.56,0.00024109,4]
[365305794,1749589845355,-1247.94,0.00024109,4]
[365305795,1749589845364,-1137.32,0.00024109,4]
[365305796,1749589845373,-1202.04,0.00024109,4]
[365305797,1749589845382,-460.0,0.00024109,4]
[365305798,1749589845392,-460.0,0.00024109,4]
[365305799,1749589845402,-1523.18,0.00024109,4]
[365305800,1749589845411,-933.91,0.00024109,4]
[365305801,1749589845420,-461.75,0.00024109,4]
[365305802,1749589845429,-1065.64,0.00024109,4]
[365305803,1749589845439,-460.0,0.00024109,4]
[365305805,1749589845448,-473.01,0.00024109,4]
[365305807,1749589845458,-460.0,0.00024109,4]
[365305809,1749589845468,-460.0,0.00024109,4]
[365305810,1749589845477,-2762.80058687,0.00024176,10]
[365305811,1749589845487,-163.69092393,0.00024184,2]
[365305812,1749589845496,-1071.66,0.000242,2]
[365305813,1749589845505,-842.5625,0.000242,10]
[365305814,1749589845514,-315.18454239,0.000242,10]
[365305815,1749589845524,-2762.80058687,0.00024279,10]
[365305816,1749589845533,-2160.0,0.00024284,2]
[365305817,1749589845543,-653.0,0.00024284,2]
[365305818,1749589845552,-151.0,0.00024291,7]
[365305820,1749589845561,-2762.80058687,0.00024383,11]
[365305821,1749589845571,-1389.58,0.00024383,4]
[365305822,1749589845580,-413.58912117,0.00024383,4]
[365305823,1749589845589,-460.0,0.00024383,4]
[365305824,1749589845598,-1521.47,0.00024383,4]
[365305825,1749589845608,-460.0,0.00024383,4]
[365305827,1749589845618,-460.0,0.00024383,4]
[365305829,1749589845628,-460.0,0.00024383,4]
[365305830,1749589845637,-1212.62,0.00024383,4]
[365305831,1749589845646,-460.0,0.00024383,2]
[365305832,1749589845661,-1247.94,0.00024383,4]
[365305833,1749589845676,-1137.32,0.00024383,4]
[365305834,1749589845690,-1202.04,0.00024383,4]
[365305835,1749589845702,-460.0,0.00024383,4]
[365305836,1749589845716,-460.0,0.00024383,4]
[365305837,1749589845730,-1523.18,0.00024383,4]
[365305838,1749589845744,-933.91,0.00024383,4]
[365305839,1749589845760,-1065.64,0.00024383,4]
[365305840,1749589845777,-461.75,0.00024383,4]
[365305841,1749589845791,-460.0,0.00024383,4]
[365305842,1749589845806,-473.01,0.00024383,4]
[365305843,1749589845820,-254.24,0.00024383,4]
[365305844,1749589845833,-460.0,0.00024383,4]
[365305845,1749589845847,-944.296882,0.00024399,3]
[365305846,1749589845862,-817.28,0.000244,7]
[365305847,1749589845875,-62216.1,0.000244,7]
[365305848,1749589845886,-2762.80058687,0.00024486,11]
[365305849,1749589845899,-151.0,0.00024493,7]
[365305850,1749589845911,-5000.0,0.00024499,2]
[365305851,1749589845924,-386.01838796,0.00024548,2]
[365305852,1749589845938,-2762.80058687,0.0002459,11]
[365305853,1749589845952,-24108.95353656,0.0002465,60]
[365305854,1749589845967,-1389.58,0.00024657,4]
[365305855,1749589845981,-460.0,0.00024657,4]
[365305856,1749589846002,-1521.47,0.00024657,4]
[365305857,1749589846013,-460.0,0.00024657,4]
[365305858,1749589846024,-460.0,0.00024657,4]
[365305859,1749589846036,-460.0,0.00024657,4]
[365305860,1749589846051,-1212.62,0.00024657,4]
[365305861,1749589846065,-460.0,0.00024657,2]
[365305862,1749589846075,-1247.94,0.00024657,4]
[365305863,1749589846088,-1137.32,0.00024657,4]
[365305864,1749589846100,-1202.04,0.00024657,4]
[365305865,1749589846113,-460.0,0.00024657,4]
[365305866,1749589846124,-460.0,0.00024657,4]
[365305867,1749589846135,-1523.18,0.00024657,4]
[365305868,1749589846146,-933.91,0.00024657,4]
[365305869,1749589846158,-1065.64,0.00024657,4]
[365305870,1749589846170,-461.75,0.00024657,4]
[365305871,1749589846183,-460.0,0.00024657,4]
[365305872,1749589846195,-473.01,0.00024657,4]
[365305873,1749589846207,-165.57,0.00024657,4]
[365305874,1749589846218,-2762.80058687,0.00024693,11]
[365305875,1749589846230,-151.0,0.00024695,7]
[365305876,1749589846242,-15622.32651195,0.00024699,7]
[365305877,1749589846253,-1000.0,0.000247,2]
[365305878,1749589846265,-200.0,0.00024718,120]
[365305879,1749589846276,-215.0738,0.00024772,2]
[365305880,1749589846288,-963.0,0.00024777,2]
[365305881,1749589846300,-2762.80058687,0.00024797,11]
[365305882,1749589846312,-226.56573404,0.00024797,80]
[365305883,1749589846323,-175.06123859,0.00024799,2]
[365305884,1749589846335,-1040.799999,0.000248,2]
[365305885,1749589846346,-2000.0,0.000248,2]
[365305886,1749589846357,-2000.0,0.000248,2]
[365305887,1749589846369,-2200.0,0.00024825,2]
[365305888,1749589846380,-6730.78,0.00024882,2]
[365305889,1749589846392,-500.0,0.00024885,9]
[365305890,1749589846403,-151.0,0.00024885,7]
[365305891,1749589846415,-307.28889,0.00024885,7]
[365305892,1749589846427,-307.28889,0.00024885,7]
[365305893,1749589846436,-307.28889,0.00024885,7]
[365305894,1749589846446,-307.28889,0.00024885,7]
[365305895,1749589846455,-307.28889,0.00024885,7]
[365305896,1749589846465,-307.28889,0.00024885,7]
[365305897,1749589846474,-307.28889,0.00024885,7]
[365305898,1749589846484,-307.28889,0.00024885,7]
[365305899,1749589846494,-307.28889,0.00024885,7]
[365305900,1749589846503,-307.28889,0.00024885,7]
[365305901,1749589846512,-307.28889,0.00024885,7]
[365305902,1749589846522,-307.28889,0.00024885,7]
[365305903,1749589846531,-307.28889,0.00024885,7]
[365305904,1749589846540,-307.28889,0.00024885,7]
[365305905,1749589846549,-307.28889,0.00024885,7]
[365305906,1749589846559,-307.288886,0.00024885,7]
[365305907,1749589846568,-848.8200196,0.00024885,120]
[365305908,1749589846577,-151.0,0.00024885,7]
[365305909,1749589846587,-151.0,0.00024885,7]
[365305910,1749589846596,-151.0,0.00024885,7]
[365305911,1749589846606,-151.0,0.00024885,7]
[365305912,1749589846616,-151.0,0.00024885,7]
[365305913,1749589846625,-151.0,0.00024885,7]
[365305914,1749589846635,-151.0,0.00024885,7]
[365305915,1749589846644,-223.703208,0.00024885,7]
[365305916,1749589846653,-151.0,0.00024885,7]
[365305917,1749589846662,-151.0,0.00024885,7]
[365305918,1749589846819,-151.0,0.00024885,7]
[365305919,1749589846835,-151.0,0.00024894,7]
[365305920,1749589846844,-151.0,0.00024894,7]
[365305921,1749589846853,-151.0,0.00024894,7]
[365305922,1749589846863,-151.0,0.00024894,7]
[365305923,1749589846872,-151.0,0.00024894,7]
[365305924,1749589846880,-151.0,0.00024894,7]
[365305925,1749589846890,-151.0,0.00024894,7]
[365305926,1749589846899,-151.0,0.00024894,7]
[365305927,1749589846908,-151.0,0.00024894,7]
[365305928,1749589846918,-151.0,0.00024894,7]
[365305929,1749589846927,-151.0,0.00024894,7]
[365305930,1749589846936,-151.0,0.00024894,7]
[365305931,1749589846945,-151.0,0.00024894,7]
[365305932,1749589846954,-151.0,0.00024894,7]
[365305933,1749589846963,-151.0,0.00024894,7]
[365305934,1749589846971,-151.0,0.00024894,7]
[365305935,1749589846980,-151.0,0.00024894,7]
[365305936,1749589846989,-268.130392,0.00024894,7]
[365305937,1749589846998,-151.0,0.00024894,7]
[365305938,1749589847007,-151.0,0.00024894,7]
[365305939,1749589847016,-151.0,0.00024894,7]
[365305940,1749589847025,-151.0,0.00024894,7]
[365305941,1749589847034,-280.35957518,0.00024895,2]
[365305942,1749589847043,-228.314082,0.00024897,7]
[365305943,1749589847052,-228.314082,0.00024897,7]
[365305944,1749589847061,-228.314082,0.00024897,7]
[365305945,1749589847070,-228.314082,0.00024897,7]
[365305946,1749589847079,-228.314082,0.00024897,7]
[365305947,1749589847088,-228.314082,0.00024897,7]
[365305948,1749589847097,-228.314082,0.00024897,7]
[365305949,1749589847107,-228.314082,0.00024897,7]
[365305950,1749589847116,-228.314082,0.00024897,7]
[365305951,1749589847125,-228.314082,0.00024897,7]
[365305952,1749589847134,-228.314082,0.00024897,7]
[365305953,1749589847144,-228.314082,0.00024897,7]
[365305954,1749589847153,-228.314082,0.00024897,7]
[365305955,1749589847162,-228.314082,0.00024897,7]
[365305956,1749589847171,-228.314082,0.00024897,7]
[365305957,1749589847180,-228.31409,0.00024897,7]
[365305958,1749589847190,-151.0,0.00024897,7]
[365305959,1749589847200,-316.0,0.00024897,3]
[365305960,1749589847209,-151.0,0.00024897,15]
[365305961,1749589847218,-151.0,0.00024897,7]
[365305962,1749589847227,-43020.25664967,0.00024899,2]
[365305963,1749589847237,-59094.78786127,0.00024899,2]